fUSD/lending_fUSD_20260409
["ID","MTS","AMOUNT","RATE_DAILY","PERIOD"]
[420127229,1775703046583,-620.335002,0.0001022,2]
[420127230,1775703046595,-1930.59892602,0.0001022,2]
[420127231,1775703046606,-1531.04928,0.0001022,2]
[420127232,1775703046618,-715.2085,0.0001022,2]
[420127233,1775703046629,-1056.1642,0.0001022,2]
[420127905,1775703165580,3000.0,9.5e-05,3]
[420127907,1775703502564,579.48502701,7.578e-05,2]
[420127918,1775704231467,-1500.0,9.017e-05,2]
[420127919,1775704231476,-170.48,9.058e-05,2]
[420127920,1775704231485,-250.0,9.08e-05,2]
[420127921,1775704231493,-322.33726529,9.143e-05,2]
[420127922,1775704231502,-261.35181984,9.202e-05,2]
[420127923,1775704231511,-898.67947297,9.269e-05,2]
[420127924,1775704231522,-270.17425063,9.269e-05,2]
[420127925,1775704231566,-31.1462764,9.269e-05,2]
[420127926,1775704231575,-708.68614541,9.27e-05,2]
[420127927,1775704231947,-1703.04317917,9.27e-05,2]
[420127928,1775704231959,-2920.0,9.27e-05,2]
[420127929,1775704231971,-542.88067542,9.27e-05,2]
[420127930,1775704231980,-300.0,9.292e-05,2]
[420127931,1775704231990,-194.0,9.293e-05,2]
[420127932,1775704231999,-150.0,9.293e-05,2]
[420127933,1775704232009,-714.62785454,9.294e-05,2]
[420127934,1775704232019,-500.0,9.294e-05,2]
[420127935,1775704232028,-500.0,9.294e-05,2]
[420127936,1775704232037,-290.5476369,9.294e-05,2]
[420127937,1775704232047,-500.0,9.294e-05,2]
[420127938,1775704232056,-320.1875806,9.294e-05,2]
[420127939,1775704232065,-500.0,9.294e-05,2]
[420127940,1775704232075,-465.95020518,9.294e-05,2]
[420127941,1775704232084,-500.0,9.294e-05,2]
[420127942,1775704232093,-500.0,9.294e-05,2]
[420127943,1775704232102,-309.42434094,9.294e-05,2]
[420127944,1775704232112,-500.0,9.294e-05,2]
[420127945,1775704232121,-500.0,9.294e-05,2]
[420127946,1775704232130,-500.0,9.294e-05,2]
[420127947,1775704232139,-500.0,9.294e-05,2]
[420127948,1775704232149,-500.0,9.294e-05,2]
[420127949,1775704232158,-500.0,9.294e-05,2]
[420127950,1775704232168,-500.0,9.294e-05,2]
[420127951,1775704232177,-500.0,9.294e-05,2]
[420127952,1775704232186,-431.87942112,9.294e-05,2]
[420127953,1775704232196,-500.0,9.294e-05,2]
[420127954,1775704232205,-500.0,9.294e-05,2]
[420127955,1775704232214,-500.0,9.294e-05,2]
[420127956,1775704232224,-1005.87706158,9.294e-05,2]
[420127957,1775704232233,-1005.87706158,9.294e-05,2]
[420127958,1775704232242,-1005.87706158,9.294e-05,2]
[420127959,1775704232252,-1005.87706158,9.294e-05,2]
[420127960,1775704232261,-1005.87706158,9.294e-05,2]
[420127961,1775704232271,-1005.87706158,9.294e-05,2]
[420127962,1775704232280,-1005.87706158,9.294e-05,2]
[420127963,1775704232289,-1005.87706158,9.294e-05,2]
[420127964,1775704232298,-1005.87706158,9.294e-05,2]
[420127965,1775704232307,-1005.87706158,9.294e-05,2]
[420127966,1775704232316,-1005.87706158,9.294e-05,2]
[420127967,1775704232326,-1005.87706158,9.294e-05,2]
[420127968,1775704232335,-1005.87706158,9.294e-05,2]
[420127970,1775704232345,-1005.87706158,9.294e-05,2]
[420127972,1775704232354,-1005.87706158,9.294e-05,2]
[420127974,1775704232363,-1005.87706158,9.294e-05,2]
[420127976,1775704232372,-1005.87706158,9.294e-05,2]
[420127978,1775704232381,-1005.87706158,9.294e-05,2]
[420127980,1775704232391,-1005.87706158,9.294e-05,2]
[420127982,1775704232400,-1005.87706158,9.294e-05,2]
[420127984,1775704232409,-1005.87706158,9.294e-05,2]
[420127986,1775704232418,-1005.87706158,9.294e-05,2]
[420127988,1775704232427,-1005.87706158,9.294e-05,2]
[420127990,1775704232437,-1005.87706158,9.294e-05,2]
[420127992,1775704232446,-1005.87706158,9.294e-05,2]
[420127994,1775704232455,-1005.87706158,9.294e-05,2]
[420127996,1775704232464,-1005.87706158,9.294e-05,2]
[420127998,1775704232473,-1005.87706158,9.294e-05,2]
[420128000,1775704232483,-1005.87706158,9.294e-05,2]
[420128002,1775704232492,-1005.87706158,9.294e-05,2]
[420128004,1775704232501,-1005.87706158,9.294e-05,2]
[420128005,1775704232510,-1005.87706158,9.294e-05,2]
[420128007,1775704232519,-1005.87706158,9.294e-05,2]
[420128009,1775704232528,-1005.87706158,9.294e-05,2]
[420128011,1775704232537,-1005.87706158,9.294e-05,2]
[420128014,1775704232547,-1005.87706158,9.294e-05,2]
[420128016,1775704232556,-1005.87706158,9.294e-05,2]
[420128017,1775704232565,-1005.87706158,9.294e-05,2]
[420128019,1775704232574,-1005.87706158,9.294e-05,2]
[420128020,1775704232583,-1005.87706158,9.294e-05,2]
[420128021,1775704232592,-1005.87706158,9.294e-05,2]
[420128022,1775704232601,-1005.87706158,9.294e-05,2]
[420128023,1775704232609,-1005.87706158,9.294e-05,2]
[420128024,1775704232618,-1005.87706158,9.294e-05,2]
[420128025,1775704232627,-1005.87706158,9.294e-05,2]
[420128026,1775704232637,-1005.87706158,9.294e-05,2]
[420128027,1775704232646,-1004.08085254,9.294e-05,2]
[420128028,1775704232655,-1004.08085254,9.294e-05,2]
[420128029,1775704232664,-1004.08085254,9.294e-05,2]
[420128030,1775704232673,-1004.08085254,9.294e-05,2]
[420128031,1775704232682,-1004.08085254,9.294e-05,2]
[420128032,1775704232691,-1004.08085254,9.294e-05,2]
[420128033,1775704232700,-1004.08085254,9.294e-05,2]
[420128034,1775704232709,-1004.08085254,9.294e-05,2]
[420128035,1775704232718,-1004.08085254,9.294e-05,2]
[420128036,1775704232727,-1004.08085254,9.294e-05,2]
[420128037,1775704232736,-1004.08085254,9.294e-05,2]
[420128038,1775704232745,-1004.08085254,9.294e-05,2]
[420128039,1775704232754,-1004.08085254,9.294e-05,2]
[420128040,1775704232763,-1004.08085254,9.294e-05,2]
[420128041,1775704232772,-1004.08085254,9.294e-05,2]
[420128042,1775704232781,-1004.08085254,9.294e-05,2]
[420128043,1775704232790,-1004.08085254,9.294e-05,2]
[420128044,1775704232799,-1004.08085254,9.294e-05,2]
[420128045,1775704232808,-1004.08085254,9.294e-05,2]
[420128046,1775704232818,-1004.08085254,9.294e-05,2]
[420128047,1775704232827,-1004.08085254,9.294e-05,2]
[420128048,1775704232836,-1004.08085254,9.294e-05,2]
[420128049,1775704232845,-1004.08085254,9.294e-05,2]
[420128050,1775704232854,-1004.08085254,9.294e-05,2]
[420128051,1775704232863,-1004.08085254,9.294e-05,2]
[420128052,1775704232872,-1004.08085254,9.294e-05,2]
[420128053,1775704232882,-1004.08085254,9.294e-05,2]
[420128054,1775704232891,-1004.08085252,9.294e-05,2]
[420128055,1775704232900,-1070.59376783,9.294e-05,2]
[420128056,1775704232909,-169467.54,9.3e-05,2]
[420128057,1775704232918,-200.0,9.443e-05,2]
[420128058,1775704232927,-656.0,9.496e-05,2]
[420128059,1775704232936,-150.0,9.5e-05,2]
[420128060,1775704232945,-517.0,9.5e-05,3]
[420128061,1775704232955,-1622.0,9.666e-05,2]
[420128062,1775704232964,-502.39170971,9.686e-05,2]
[420128063,1775704232973,-349.0,9.694e-05,2]
[420128064,1775704232982,-525.0,9.714e-05,2]
[420128065,1775704232991,-500.0,9.893e-05,2]
[420128066,1775704233000,-343.0,9.898e-05,2]
[420128067,1775704233010,-2300.0,9.9e-05,3]
[420128068,1775704233019,-200.0,9.9e-05,3]
[420128069,1775704233028,-165.68748529,9.915e-05,2]
[420128070,1775704233037,-293.18808418,9.915e-05,2]
[420128071,1775704233046,-500.0,9.915e-05,2]
[420128072,1775704233056,-500.0,9.915e-05,2]
[420128073,1775704233065,-600.0,9.915e-05,2]
[420128074,1775704233074,-500.0,9.915e-05,2]
[420128075,1775704233084,-500.0,9.915e-05,2]
[420128076,1775704233093,-460.69833973,9.915e-05,2]
[420128077,1775704233102,-500.0,9.915e-05,2]
[420128078,1775704233111,-584.45306175,9.915e-05,2]
[420128079,1775704233120,-500.0,9.915e-05,2]
[420128080,1775704233129,-500.0,9.915e-05,2]
[420128081,1775704233138,-500.0,9.915e-05,2]
[420128082,1775704233147,-500.0,9.915e-05,2]
[420128083,1775704233157,-500.0,9.915e-05,2]
[420128084,1775704233166,-500.0,9.915e-05,2]
[420128085,1775704233176,-381.56988974,9.915e-05,2]
[420128086,1775704233185,-500.0,9.915e-05,2]
[420128087,1775704233194,-500.0,9.915e-05,2]
[420128088,1775704233203,-500.0,9.915e-05,2]
[420128089,1775704233212,-500.0,9.915e-05,2]
[420128090,1775704233222,-234.58523875,9.915e-05,2]
[420128091,1775704233231,-500.0,9.915e-05,2]
[420128092,1775704233240,-500.0,9.915e-05,2]
[420128093,1775704233249,-500.0,9.915e-05,2]
[420128094,1775704233258,-500.0,9.915e-05,2]
[420128095,1775704233268,-500.0,9.915e-05,2]
[420128096,1775704233277,-500.0,9.915e-05,2]
[420128097,1775704233286,-500.0,9.915e-05,2]
[420128098,1775704233296,-400.0,9.915e-05,2]
[420128099,1775704233305,-133029.00677905,9.916e-05,2]
[420128100,1775704233319,-8372.7348956,9.916e-05,2]
[420128101,1775704233330,-637.8374777,9.916e-05,2]
[420128125,1775704238838,-1847.9963211,9.916e-05,2]
[420128126,1775704238859,-793.66649967,9.916e-05,2]
[420128128,1775704240828,-282.11059162,9.916e-05,2]
[420128129,1775704240875,-2200.0,9.916e-05,2]
[420128130,1775704240912,-107803.74423526,9.916e-05,2]
[420128131,1775704240922,-440.11113414,9.918e-05,2]
[420128132,1775704240931,-3023.43685101,9.919e-05,2]
[420128133,1775704240940,-193.0,9.919e-05,2]
[420128134,1775704240950,-250.0,9.919e-05,2]
[420128135,1775704240959,-656.0,9.965e-05,2]
[420128136,1775704240969,-154.0,9.985e-05,2]
[420128137,1775704240978,-213.0,9.989e-05,2]
[420128138,1775704240988,-213.0,9.989e-05,2]
[420128139,1775704240997,-213.0,9.989e-05,2]
[420128140,1775704241007,-258.24,0.0001,2]
[420128141,1775704241016,-1886.76,0.0001,2]
[420128142,1775704241026,-151.0,0.0001,2]
[420128143,1775704241036,-151.0,0.0001,2]
[420128144,1775704241045,-151.0,0.0001,2]
[420128145,1775704241055,-151.0,0.0001,2]
[420128146,1775704241064,-151.0,0.0001,2]
[420128147,1775704241073,-151.0,0.0001,2]
[420128148,1775704241083,-151.0,0.0001,2]
[420128149,1775704241092,-151.0,0.0001,2]
[420128150,1775704241102,-151.0,0.0001,2]
[420128151,1775704241112,-151.0,0.0001,2]
[420128152,1775704241121,-151.0,0.0001,2]
[420128153,1775704241130,-151.0,0.0001,2]
[420128154,1775704241140,-151.0,0.0001,2]
[420128155,1775704241149,-200.0,0.0001,2]
[420128156,1775704241159,-151.0,0.0001,2]
[420128157,1775704241168,-151.0,0.0001,2]
[420128158,1775704241178,-151.0,0.0001,2]
[420128159,1775704241187,-4600.0,0.0001,3]
[420128160,1775704241197,-166.73180751,0.0001,2]
[420128161,1775704241207,-151.0,0.0001,2]
[420128162,1775704241216,-151.0,0.0001,2]
[420128163,1775704241226,-151.0,0.0001,2]
[420128164,1775704241235,-151.0,0.0001,2]
[420128165,1775704241245,-151.0,0.0001,2]
[420128166,1775704241254,-151.0,0.0001,2]
[420128167,1775704241263,-1156.41848616,0.0001,2]
[420128168,1775704241272,-151.0,0.0001,2]
[420128169,1775704241281,-151.0,0.0001,2]
[420128170,1775704241291,-286.22971031,0.0001,2]
[420128171,1775704241301,-177.4485034,0.0001,2]
[420128172,1775704241310,-500.0,0.0001,2]
[420128173,1775704241319,-500.0,0.0001,2]
[420128174,1775704241328,-500.0,0.0001,2]
[420128175,1775704241338,-500.0,0.0001,2]
[420128176,1775704241352,-500.0,0.0001,2]
[420128177,1775704241361,-500.0,0.0001,2]
[420128178,1775704241371,-500.0,0.0001,2]
[420128179,1775704241380,-500.0,0.0001,2]
[420128180,1775704241389,-500.0,0.0001,2]
[420128181,1775704241399,-500.0,0.0001,2]
[420128182,1775704241408,-500.0,0.0001,2]
[420128183,1775704241417,-500.0,0.0001,2]
[420128184,1775704241427,-500.0,0.0001,3]
[420128185,1775704241437,-561.10535588,0.0001,2]
[420128186,1775704241448,-1923.0,0.00010005,2]
[420128187,1775704241458,-150.0,0.00010011,2]
[420128188,1775704241468,-2838.16841084,0.00010016,2]
[420128189,1775704241478,-2835.5,0.00010016,2]
[420128190,1775704241487,-2835.5,0.00010016,2]
[420128191,1775704241497,-317.56,0.00010058,2]
[420128192,1775704241506,-331.33694973,0.00010061,2]
[420128193,1775704241515,-1000.0,0.00010079,2]
[420128194,1775704241525,-458.99867871,0.00010114,2]
[420128195,1775704241534,-517.0,0.00010158,3]
[420128196,1775704241543,-159.121307,0.00010158,2]
[420128197,1775704241553,-172382.9405861,0.00010161,2]
[420128198,1775704241562,-9367.7627257,0.00010161,2]
[420128199,1775704241571,-407455.018161,0.00010161,2]
[420128200,1775704241581,-151.0,0.00010161,2]
[420128201,1775704241591,-151.0,0.00010161,2]
[420128202,1775704241600,-224.521189,0.00010161,2]
[420128203,1775704241610,-224.521189,0.00010161,2]
[420128204,1775704241619,-224.521189,0.00010161,2]
[420128205,1775704241628,-224.521189,0.00010161,2]
[420128206,1775704241638,-151.0,0.00010161,2]
[420128207,1775704241648,-151.0,0.00010161,2]
[420128208,1775704241657,-151.0,0.00010161,2]
[420128209,1775704241667,-1000.165167,0.00010161,2]
[420128210,1775704241676,-1000.165167,0.00010161,2]
[420128211,1775704241685,-1000.165167,0.00010161,2]
[420128212,1775704241696,-1000.165167,0.00010161,2]
[420128213,1775704241706,-956.923576,0.00010161,2]
[420128214,1775704241716,-956.923576,0.00010161,2]
[420128215,1775704241725,-956.923576,0.00010161,2]
[420128216,1775704241734,-956.923576,0.00010161,2]
[420128217,1775704241744,-500.99512268,0.00010173,2]
[420128218,1775704241754,-500.0,0.00010173,2]
[420128219,1775704241763,-500.0,0.00010173,2]
[420128220,1775704241773,-500.0,0.00010173,2]
[420128221,1775704241783,-1680.0,0.00010195,2]
[420128222,1775704241793,-159.121307,0.00010217,2]
[420128223,1775704241803,-200.0,0.0001022,2]
[420128224,1775704241813,-200.0,0.0001022,2]
[420128225,1775704241823,-200.0,0.0001022,2]
[420128226,1775704241832,-151.0,0.0001022,2]
[420128227,1775704241842,-500.0,0.0001022,2]
[420128228,1775704241852,-200.0,0.0001022,2]
[420128229,1775704241861,-420.0,0.00010221,2]
[420128230,1775704241871,-255.0,0.00010222,2]
[420128231,1775704241881,-154.27,0.00010304,2]
[420128232,1775704241891,-200.0,0.00010322,2]
[420128233,1775704241900,-200.0,0.00010322,2]
[420128234,1775704241910,-200.0,0.00010322,2]
[420128235,1775704241920,-200.0,0.00010322,2]
[420128236,1775704241929,-153.32,0.00010365,2]
[420128237,1775704241939,-268.31,0.00010369,2]
[420128238,1775704241950,-344.98,0.00010373,2]
[420128239,1775704241959,-200.0,0.00010425,2]
[420128240,1775704241969,-200.0,0.00010425,2]
[420128241,1775704241979,-200.0,0.00010425,2]
[420128242,1775704241988,-200.0,0.00010425,2]
[420128243,1775704241998,-163.12,0.00010438,2]
[420128244,1775704242008,-1000.0,0.00010441,2]
[420128245,1775704242018,-196.06,0.00010452,2]
[420128246,1775704242027,-200.0,0.0001053,2]
[420128247,1775704242036,-200.0,0.0001053,2]
[420128248,1775704242046,-200.0,0.0001053,2]
[420128249,1775704242056,-331.33694972,0.0001053,2]
[420128250,1775704242065,-200.0,0.0001053,2]
[420128251,1775704242075,-200.0,0.00010548,2]
[420128252,1775704242084,-1199.20597015,0.00010548,2]
[420128253,1775704242095,-1124.60160444,0.00010582,2]
[420128254,1775704242104,-15653.75,0.00010592,2]
[420128255,1775704242114,-2240.0,0.000106,5]
[420128256,1775704242123,-1600.0,0.00010615,2]
[420128257,1775704242133,-200.0,0.00010635,2]
[420128258,1775704242143,-200.0,0.00010635,2]
[420128259,1775704242152,-200.0,0.00010635,2]
[420128260,1775704242162,-200.0,0.00010635,2]
[420128261,1775704242172,-44287.93176783,0.000107,2]
[420128262,1775704242181,-1852.42,0.00010701,2]
[420128263,1775704242190,-154.27,0.00010716,2]
[420128264,1775704242200,-1000.0,0.00010721,2]
[420128265,1775704242209,-1000.0,0.00010721,2]
[420128266,1775704242219,-502.19224822,0.00010721,2]
[420128267,1775704242229,-2000.0,0.00010725,2]
[420128268,1775704242238,-517.0,0.00010816,3]
[420128269,1775704242247,-160.0,0.00010877,2]
[420128270,1775704242257,-1309.348236,0.00010877,2]
[420128271,1775704242267,-2458.696473,0.00010877,2]
[420128272,1775704242276,-160.0,0.00010877,2]
[420128273,1775704242286,-704.519455,0.00010877,2]
[420128274,1775704242295,-1249.038911,0.00010877,2]
[420128275,1775704242305,-160.0,0.00010877,2]
[420128276,1775704242315,-160.0,0.00010884,2]
[420128277,1775704242325,-1796.666916,0.00010884,2]
[420128278,1775704242335,-3433.333832,0.00010884,2]
[420128279,1775704242344,-152.0,0.00010897,3]
[420128280,1775704242354,-173.5455,0.000109,2]
[420128281,1775704242363,-6900.0,0.000109,3]
[420128282,1775704242373,-800.0,0.000109,3]
[420128283,1775704242382,-8321.53585144,0.000109,2]
[420128284,1775704242392,-8321.53585143,0.000109,2]
[420128285,1775704242401,-500.0,0.00010959,2]
[420128286,1775704242411,-227.79560374,0.00010959,2]
[420128287,1775704242420,-185.58,0.00010959,2]
[420128288,1775704242430,-150.0,0.00010959,2]
[420128289,1775704242440,-2014.34,0.00010959,2]
[420128290,1775704242450,-200.0,0.00010959,5]
[420128291,1775704242459,-200.0,0.00010959,5]
[420128292,1775704242468,-200.0,0.00010959,5]
[420128293,1775704242478,-200.0,0.00010959,5]
[420128294,1775704242488,-200.0,0.00010959,5]
[420128295,1775704242497,-200.0,0.00010959,5]
[420128296,1775704242507,-200.0,0.00010959,5]
[420128297,1775704242516,-200.0,0.00010959,5]
[420128298,1775704242526,-200.0,0.00010959,5]
[420128299,1775704242536,-200.0,0.00010959,5]
[420128300,1775704242546,-200.0,0.00010959,5]
[420128301,1775704242556,-200.0,0.00010959,5]
[420128302,1775704242565,-200.0,0.00010959,5]
[420128303,1775704242574,-200.0,0.00010959,5]
[420128304,1775704242584,-200.0,0.00010959,5]
[420128305,1775704242593,-200.0,0.00010959,5]
[420128306,1775704242603,-200.0,0.00010959,5]
[420128307,1775704242612,-200.0,0.00010959,5]
[420128308,1775704242622,-200.0,0.00010959,5]
[420128309,1775704242632,-200.0,0.00010959,5]
[420128310,1775704242641,-200.0,0.00010959,5]
[420128311,1775704242651,-200.0,0.00010959,5]
[420128312,1775704242660,-200.0,0.00010959,5]
[420128313,1775704242669,-200.0,0.00010959,5]
[420128314,1775704242843,-200.0,0.00010959,5]
[420128315,1775704242853,-200.0,0.00010959,5]
[420128316,1775704242863,-200.0,0.00010959,5]
[420128317,1775704242873,-200.0,0.00010959,5]
[420128318,1775704242883,-200.0,0.00010959,5]
[420128319,1775704242893,-200.0,0.00010959,5]
[420128320,1775704242902,-200.0,0.00010959,5]
[420128321,1775704242911,-200.0,0.00010959,5]
[420128322,1775704242921,-200.0,0.00010959,5]
[420128323,1775704242930,-200.0,0.00010959,5]
[420128324,1775704242940,-200.0,0.00010959,5]
[420128325,1775704242949,-200.0,0.00010959,5]
[420128326,1775704242958,-200.0,0.00010959,5]
[420128327,1775704242968,-200.0,0.00010959,5]
[420128328,1775704242977,-200.0,0.00010959,5]
[420128329,1775704242987,-200.0,0.00010959,5]
[420128330,1775704242996,-200.0,0.00010959,5]
[420128331,1775704243005,-200.0,0.00010959,5]
[420128332,1775704243015,-200.0,0.00010959,5]
[420128333,1775704243025,-200.0,0.00010959,5]
[420128334,1775704243036,-200.0,0.00010959,5]
[420128335,1775704243048,-200.0,0.00010959,5]
[420128336,1775704243058,-200.0,0.00010959,5]
[420128337,1775704243069,-281.386917,0.00010959,5]
[420128338,1775704243079,-169.54971223,0.00010959,2]
[420128339,1775704243088,-166.66,0.00010965,2]
[420128340,1775704243098,-176.20779835,0.00010988,2]
[420128341,1775704243108,-542.91850225,0.00010999,2]
[420128342,1775704243118,-331.33694972,0.00010999,2]
[420128343,1775704243128,-151.524,0.00011022,2]
[420128344,1775704243138,-458.99867867,0.00011078,2]
[420128345,1775704243148,-200.0,0.00011096,2]
[420128346,1775704243157,-518.63334759,0.00011096,2]
[420128347,1775704243166,-1104.19256263,0.00011098,3]
[420128348,1775704243176,-37353.14668504,0.00011099,2]
[420128349,1775704243186,-37353.14668503,0.00011099,2]
[420128350,1775704243198,-37353.14668503,0.00011099,2]
[420128351,1775704243209,-37353.14668503,0.00011099,2]
[420128352,1775704243219,-160.0,0.00011106,2]
[420128353,1775704243230,-539.2749,0.00011106,2]
[420128354,1775704243239,-918.549801,0.00011106,2]
[420128355,1775704243256,-160.0,0.00011106,2]
[420128356,1775704243267,-1321.267374,0.00011106,2]
[420128357,1775704243278,-2482.534748,0.00011106,2]
[420128358,1775704243289,-152.0,0.00011129,4]
[420128359,1775704243300,-163.12,0.00011183,2]
[420128360,1775704243312,-2351.0,0.00011215,2]
[420128361,1775704243323,-154.97,0.00011233,2]
[420128362,1775704243334,-587.0,0.00011243,2]
[420128363,1775704243345,-433.0,0.00011245,2]
[420128364,1775704243355,-1500.0,0.00011268,2]
[420128365,1775704243365,-1500.0,0.00011268,2]
[420128366,1775704243375,-151.0,0.00011307,2]
[420128367,1775704243385,-151.0,0.00011307,2]
[420128368,1775704243394,-151.0,0.00011307,2]
[420128369,1775704243404,-33956.0,0.00011315,2]
[420128370,1775704243414,-166.66,0.00011327,2]
[420128371,1775704243424,-299.531417,0.00011333,2]
[420128372,1775704243434,-299.531417,0.00011333,2]
[420128373,1775704243445,-299.531417,0.00011333,2]
[420128374,1775704243455,-299.531417,0.00011333,2]
[420128375,1775704243465,-151.0,0.00011333,2]
[420128376,1775704243475,-151.0,0.00011333,2]
[420128377,1775704243484,-224.521189,0.00011333,2]
[420128378,1775704243494,-224.521189,0.00011333,2]
[420128379,1775704243504,-224.521189,0.00011333,2]
[420128380,1775704243514,-224.521189,0.00011333,2]
[420128381,1775704243523,-151.0,0.00011333,2]
[420128382,1775704243534,-151.0,0.00011333,2]
[420128383,1775704243544,-159.385593,0.00011333,2]
[420128384,1775704243554,-1000.165167,0.00011333,2]
[420128385,1775704243564,-1000.165167,0.00011333,2]
[420128386,1775704243574,-1000.165167,0.00011333,2]
[420128387,1775704243585,-1000.165167,0.00011333,2]
[420128388,1775704243595,-956.923576,0.00011333,2]
[420128389,1775704243605,-956.923576,0.00011333,2]
[420128390,1775704243615,-956.923576,0.00011333,2]
[420128391,1775704243624,-956.923576,0.00011333,2]
[420128392,1775704243635,-407455.018161,0.00011333,2]
[420128393,1775704243646,-152.0,0.00011362,5]
[420128394,1775704243655,-8321.53585143,0.0001139,2]
[420128395,1775704243665,-1785.474868,0.00011421,2]
[420128396,1775704243674,-960.708348,0.00011421,2]
[420128397,1775704243684,-2450.00034,0.00011428,2]
[420128398,1775704243693,-517.0,0.00011474,3]
[420128399,1775704243703,-37353.14668503,0.00011478,2]
[420128400,1775704243714,-8161.33,0.00011507,2]
[420128401,1775704243723,-159.121307,0.00011542,2]
[420128402,1775704243734,-172382.9405861,0.00011545,2]
[420128403,1775704243744,-152.0,0.00011594,6]
[420128404,1775704243754,-200.0,0.00011644,2]
[420128405,1775704243763,-1103.062296,0.00011662,2]
[420128406,1775704243776,-1801.728237,0.00011662,2]
[420128407,1775704243786,-166.66,0.00011689,2]
[420128408,1775704243796,-500.0,0.00011781,2]
[420128409,1775704243807,-2000.0,0.00011816,2]
[420128410,1775704243817,-2000.0,0.00011816,2]
[420128411,1775704243827,-152.0,0.00011827,7]
[420128412,1775704243837,-151.0,0.00011879,2]
[420128413,1775704243847,-151.0,0.00011879,2]
[420128414,1775704243858,-2000.0,0.00011917,2]
[420128415,1775704243868,-163.12,0.00011929,2]
[420128416,1775704243878,-1600.0,0.00011942,2]
[420128417,1775704243889,-1000.165167,0.00011942,2]
[420128418,1775704243898,-1000.165167,0.00011942,2]
[420128419,1775704243909,-1000.165167,0.00011942,2]
[420128420,1775704243918,-1000.165167,0.00011942,2]
[420128421,1775704243928,-224.521189,0.00011956,2]
[420128422,1775704243939,-224.521189,0.00011956,2]
[420128423,1775704243949,-224.521189,0.00011956,2]
[420128424,1775704243959,-224.521189,0.00011956,2]
[420128425,1775704243969,-159.121307,0.00011956,2]
[420128426,1775704243979,-159.121307,0.00011956,2]
[420128427,1775704243989,-151.0,0.00011959,2]
[420128428,1775704244000,-151.0,0.00011959,2]
[420128429,1775704244010,-37353.14668503,0.00012012,2]
[420128430,1775704244020,-299.531417,0.00012025,2]
[420128431,1775704244030,-299.531417,0.00012025,2]
[420128432,1775704244039,-299.531417,0.00012025,2]
[420128433,1775704244049,-299.531417,0.00012025,2]
[420128434,1775704244058,-458.99867867,0.00012043,2]
[420128435,1775704244068,-166.66,0.00012051,2]
[420128436,1775704244078,-152.0,0.00012059,8]
[420128437,1775704244088,-956.923576,0.00012061,2]
[420128438,1775704244097,-956.923576,0.00012061,2]
[420128439,1775704244106,-956.923576,0.00012061,2]
[420128440,1775704244116,-956.923576,0.00012061,2]
[420128441,1775704244126,-2090.2303972,0.00012061,2]
[420128442,1775704244135,-317.56,0.00012081,2]
[420128443,1775704244144,-517.0,0.00012132,3]
[420128444,1775704244154,-200.0,0.00012192,2]
[420128445,1775704244164,-152.0,0.00012291,9]
[420128446,1775704244173,-8321.53585143,0.00012292,2]
[420128447,1775704244182,-200.787,0.000123,2]
[420128448,1775704244192,-3292.0,0.00012336,2]
[420128449,1775704244201,-1000.0,0.00012364,2]
[420128450,1775704244211,-483.35788584,0.00012364,2]
[420128451,1775704244220,-823.0,0.00012368,2]
[420128452,1775704244230,-736.0,0.00012369,2]
[420128453,1775704244239,-166.66,0.00012413,2]
[420128454,1775704244249,-466.3934432,0.00012485,2]
[420128455,1775704244258,-299.531417,0.00012505,2]
[420128456,1775704244267,-299.531417,0.00012505,2]
[420128457,1775704244277,-299.531417,0.00012505,2]
[420128458,1775704244286,-299.531417,0.00012505,2]
[420128459,1775704244296,-151.0,0.00012505,2]